bitfinex/quotes_ETHUSD_20250222
["timestamp","ask_amount","ask_price","bid_price","bid_amount"]
[1740221103344,3.6467,2742.2,2742.1,5.4294]
[1740221103670,3.64653,2742.4,2742.1,5.3]
[1740221103877,7.29309,2742.4,2742.1,5.3]
[1740221104173,3.64658,2742.3,2742.1,5.3]
[1740221104670,4.45414,2742.5,2742.1,5.3]
[1740221104871,3.64655,2742.4,2742.1,5.3]
[1740221105341,3.94493,2743.6,2742.1,5.3]
[1740221105342,0.831,2742.8,2742.2,0.1294]
[1740221105535,0.831,2742.8,2742.1,5.3]
[1740221105736,3.64643,2742.5,2742.1,5.3]
[1740221105936,3.64604,2742.7,2742.1,8.94673]
[1740221106137,3.64617,2742.6,2742.1,8.94673]
[1740221106337,3.64633,2742.5,2742.1,5.3]
[1740221108235,0.831,2742.8,2742.1,5.3]
[1740221108584,3.64584,2742.9,2742.3,3.64656]
[1740221111683,3.64591,2742.8,2742.3,3.64656]
[1740221111989,3.64591,2742.8,2742.2,0.1294]
[1740221112193,3.64584,2742.9,2742.2,0.1294]
[1740221112194,0.7942,2743.1,2742.2,0.1294]
[1740221112403,3.6462,2742.6,2742.2,5.4294]
[1740221114512,3.64594,2742.8,2742.2,9.07609]
[1740221115815,0.7942,2743.1,2742.2,5.4294]
[1740221115965,3.64565,2743.0,2742.4,3.64636]
[1740221118008,3.43474858,2743.4,2742.3,0.1294]
[1740221118219,3.64592,2742.8,2742.3,0.1294]
[1740221118357,4.43997,2742.9,2742.3,3.77586]
[1740221118887,4.43997,2742.9,2742.4,3.64642]
[1740221119914,4.43997,2742.9,2742.3,0.1294]
[1740221120466,0.7942,2742.9,2742.3,0.1294]
[1740221120678,0.7942,2742.9,2742.4,3.64633]
[1740221120881,3.64556,2743.1,2742.4,4.023903]
[1740221121067,20.86589706,2743.6,2742.8,3.64583]
[1740221121068,4.40978,2743.5,2742.8,3.64583]
[1740221121290,3.64547,2743.2,2742.6,8.94606]
[1740221121490,3.64572,2743.0,2742.6,5.3]
[1740221121676,4.41042,2743.0,2742.6,5.3]
[1740221121999,5.139536,2743.0,2742.6,5.3]
[1740221122205,4.41042,2743.0,2742.6,5.3]
[1740221122416,0.7647,2743.0,2742.6,8.94617]
[1740221122575,4.41013,2743.2,2742.6,8.94617]
[1740221124515,4.41013,2743.2,2742.6,12.59226]
[1740221124711,0.7647,2743.2,2742.7,3.64603]
[1740221124914,0.7647,2743.2,2742.8,3.6459]
[1740221125116,4.41589,2743.5,2742.9,3.64569]
[1740221125416,3.64511,2743.4,2742.7,0.1294]
[1740221125622,0.7708,2743.1,2742.6,5.3]
[1740221125804,3.64568,2743.0,2742.6,5.3]
[1740221126306,0.7708,2743.1,2742.6,5.3]
[1740221126498,0.7708,2743.1,2742.6,8.94615]
[1740221127907,0.7708,2743.3,2742.9,3.77507]
[1740221128107,0.7708,2743.3,2742.9,7.42076]
[1740221128421,5.95884856,2743.5,2742.9,3.77507]
[1740221128987,5.95884856,2743.5,2742.9,7.42076]
[1740221129316,2.31386856,2743.5,2743.0,3.64554]
[1740221129682,0.7708,2743.5,2743.0,3.64554]
[1740221129980,0.7708,2743.7,2743.3,3.64523]
[1740221130184,0.7708,2744.0,2743.3,3.77464]
[1740221130431,4.41513,2744.0,2743.4,3.6451]
[1740221130943,4.41513,2744.0,2743.1,3.77483]
[1740221130944,3.64471,2743.7,2743.1,3.77483]
[1740221131229,1.14941486,2743.9,2743.2,3.64535]
[1740221131397,4.79394486,2743.9,2743.2,3.64535]
[1740221132009,4.79394486,2743.9,2743.3,3.64523]
[1740221132305,4.79394486,2743.9,2743.4,0.09043582]
[1740221132306,1.14941486,2743.9,2743.4,0.09043582]
[1740221132502,4.41518,2744.0,2743.4,3.73545582]
[1740221132503,4.41522,2744.0,2743.4,3.73545582]
[1740221132984,4.41521,2744.0,2743.4,3.73545582]
[1740221133182,0.7708,2744.0,2743.5,3.64493]
[1740221133482,0.7708,2744.0,2743.6,3.73548554]
[1740221133988,8.2188,2744.2,2743.8,3.64456]
[1740221134515,7.448,2744.2,2744.0,3.64429]
[1740221134882,7.448,2744.2,2744.1,0.09058422]
[1740221135083,11.95392,2744.2,2744.1,0.09058422]
[1740221135302,11.95392,2744.2,2743.6,8.94483]
[1740221135501,11.09204,2744.2,2744.1,0.09058422]
[1740221135822,11.0921,2744.2,2744.1,0.09058422]
[1740221135990,11.0921,2744.2,2743.6,8.94483]
[1740221136319,11.0921,2744.2,2743.7,0.09058422]
[1740221138610,0.7708,2744.1,2743.7,0.09058422]
[1740221139246,0.4,2744.4,2744.3,3.64391]
[1740221139396,0.4,2744.4,2744.0,3.64426]
[1740221139596,0.4,2744.4,2744.1,0.08938552]
[1740221140031,1.2224,2744.4,2743.9,3.77384]
[1740221140230,1.2224,2744.4,2744.0,0.08938552]
[1740221140416,1.2224,2744.4,2744.0,3.73366552]
[1740221142999,0.4,2744.4,2744.2,3.64396]
[1740221143425,0.4,2744.4,2744.3,0.08938552]
[1740221143645,0.4,2744.4,2744.2,3.64402]
[1740221143816,0.4,2744.4,2744.3,0.08938552]
[1740221144014,0.4,2744.4,2744.1,3.64415]
[1740221144215,0.4,2744.4,2744.2,0.08938552]
[1740221146832,0.4,2744.4,2744.2,3.73340552]
[1740221147939,0.4,2744.4,2744.3,3.64391]
[1740221148443,0.4,2744.4,2744.3,3.86269552]
[1740221149740,0.4,2744.4,2744.3,9.16269552]
[1740221155231,0.4,2744.4,2744.3,12.43637057]
[1740221157472,0.4,2744.4,2744.3,15.79637057]
[1740221157767,0.4,2744.4,2744.3,16.42680232]
[1740221160346,0.4,2744.4,2744.3,6.01981727]
[1740221160553,0.4,2744.4,2744.3,5.38938552]
[1740221163148,0.4,2744.4,2744.3,9.03329552]
[1740221164347,0.4,2744.4,2744.3,5.38938552]
[1740221165184,1.1773,2744.4,2744.3,5.38938552]
[1740221166487,1.1773,2744.4,2744.3,0.08938552]
[1740221166644,1.1773,2744.4,2744.0,8.94431]
[1740221167052,1.1773,2744.4,2744.1,0.08372833]
[1740221167349,0.4,2744.4,2744.3,3.64391]
[1740221167772,0.4,2744.4,2744.3,3.72763833]
[1740221168288,0.4,2744.4,2744.3,0.08372833]
[1740221168622,0.4,2744.4,2744.2,3.64402]
[1740221168753,0.4,2744.4,2744.3,0.08372833]
[1740221168958,0.4,2744.4,2744.2,3.64402]
[1740221169158,0.4,2744.4,2744.3,0.08372833]
[1740221169358,0.4,2744.4,2744.2,3.64402]
[1740221169597,0.4,2744.4,2744.3,0.08372833]
[1740221169867,0.4,2744.4,2744.2,3.64402]
[1740221170192,0.4,2744.4,2744.3,0.08372833]
[1740221170571,0.4,2744.4,2744.2,3.64394]
[1740221170900,0.4,2744.4,2744.3,0.08372833]
[1740221171271,0.4,2744.4,2744.2,3.64394]
[1740221171471,0.4,2744.4,2744.3,0.08372833]
[1740221171673,0.4,2744.4,2744.2,3.64394]
[1740221171885,0.4,2744.4,2744.3,0.08372833]
[1740221172087,0.4,2744.4,2744.2,3.64394]
[1740221172287,0.4,2744.4,2744.3,0.08372833]
[1740221172784,0.4,2744.4,2744.2,3.64394]
[1740221172996,0.4,2744.4,2744.3,0.08372833]
[1740221173376,0.4,2744.4,2744.2,3.64394]
[1740221173576,0.4,2744.4,2744.3,0.08372833]
[1740221174110,0.4,2744.4,2744.2,3.64394]
[1740221174334,0.4,2744.4,2744.3,0.08372833]
[1740221174613,0.4,2744.4,2744.2,3.64394]
[1740221174812,0.4,2744.4,2744.3,0.08372833]
[1740221175034,0.4,2744.4,2744.3,3.72763833]
[1740221175217,0.4,2744.4,2744.2,3.64394]
[1740221175422,0.4,2744.4,2744.3,0.08372833]
[1740221175724,0.7773,2744.3,2743.6,3.64476]
[1740221175935,0.7773,2744.0,2743.5,8.94488]
[1740221176230,0.7773,2744.0,2743.5,9.839368]
[1740221177736,0.7773,2744.0,2743.5,6.194488]
[1740221178439,0.7773,2744.0,2743.6,0.07937308]
[1740221186852,0.7773,2744.0,2743.6,3.72419308]
[1740221187713,0.7773,2744.0,2743.9,3.64444]
[1740221188046,0.7852,2744.3,2744.2,3.64404]
[1740221188349,0.4,2744.4,2744.2,0.07933888]
[1740221188645,0.4,2744.4,2744.2,3.64394]
[1740221188826,0.4,2744.4,2744.3,3.72373895]
[1740221189027,0.4,2744.4,2744.3,0.07982895]
[1740221189423,0.4,2744.4,2744.1,7.28816]
[1740221189625,0.4,2744.4,2744.3,0.07982895]
[1740221189829,0.4,2744.4,2744.1,3.64407]
[1740221190034,0.4,2744.4,2744.3,0.07982895]
[1740221190239,0.4,2744.4,2744.1,7.28815]
[1740221190434,0.4,2744.4,2744.3,3.72373895]
[1740221191121,0.4,2744.4,2744.3,0.07982895]
[1740221191360,0.4,2744.4,2744.2,3.64397]
[1740221191523,0.4,2744.4,2744.3,0.07982895]
[1740221191719,0.4,2744.4,2744.3,3.64391]
[1740221191925,0.4,2744.4,2744.3,0.07982895]
[1740221192151,0.4,2744.4,2744.2,3.64396]
[1740221192424,0.4,2744.4,2744.3,3.72373895]
[1740221193827,0.4,2744.4,2744.3,0.07982895]
[1740221194361,0.4,2744.4,2744.3,0.0792932]
[1740221194558,0.4,2744.4,2744.2,7.28799]
[1740221194863,0.4,2744.4,2744.3,0.0792932]
[1740221195161,0.4,2744.4,2744.2,7.28799]
[1740221195363,0.4,2744.4,2744.3,3.7232032]
[1740221195747,0.4,2744.4,2744.3,0.0792932]
[1740221195949,0.4,2744.4,2744.2,3.64404]
[1740221196142,0.7852,2744.3,2744.1,5.3]
[1740221196462,1.268107,2744.3,2744.1,5.3]
[1740221197763,0.7852,2744.2,2744.1,5.3]
[1740221198765,4.42924,2744.2,2744.1,5.3]
[1740221199079,0.7852,2744.1,2743.5,8.94497]
[1740221199963,4.4294,2744.1,2743.5,8.94497]
[1740221200754,4.4294,2744.1,2743.6,3.64483]
[1740221201260,4.42943,2744.1,2743.5,5.3]
[1740221201761,4.43503,2744.0,2743.5,8.94495]
[1740221201959,3.64466,2743.8,2743.1,5.3]
[1740221202161,0.7907,2743.7,2743.2,3.64528]
[1740221202726,0.7907,2743.7,2743.1,5.3]
[1740221202927,0.7907,2743.4,2743.1,5.3]
[1740221203563,1.598768,2743.4,2743.1,5.3]
[1740221204242,3.64525,2743.3,2743.1,5.3]
[1740221204560,0.7907,2743.2,2742.5,8.94625]
[1740221204779,3.64559,2743.1,2742.5,5.3]
[1740221204996,3.64559,2743.1,2742.5,8.9463]
[1740221205772,0.782,2743.0,2742.5,8.9463]
[1740221207977,0.782,2743.0,2742.5,8.9462]
[1740221208175,0.782,2743.0,2742.6,3.64608]
[1740221208470,0.782,2743.0,2742.6,3.72166439]
[1740221210278,0.782,2743.0,2742.7,3.64601]
[1740221210472,0.782,2743.0,2742.8,3.6459]
[1740221210676,0.782,2743.0,2742.6,3.64612]
[1740221210877,0.782,2743.0,2742.9,0.07554439]
[1740221211041,0.782,2743.0,2742.6,3.64612]
[1740221211242,0.782,2743.0,2742.9,0.07554439]
[1740221211441,1.224738,2743.0,2742.6,3.64612]
[1740221211644,1.224738,2743.0,2742.9,0.07554439]
[1740221211841,1.224738,2743.0,2742.6,3.64612]
[1740221212040,0.782,2743.0,2742.9,0.07554439]
[1740221212593,0.782,2743.0,2742.6,3.64607]
[1740221212794,0.782,2743.0,2742.9,0.07554439]
[1740221212973,0.782,2743.0,2742.7,3.64601]
[1740221213160,0.782,2743.0,2742.9,0.07554439]
[1740221213360,1.224739,2743.0,2742.6,3.64607]
[1740221213694,1.224739,2743.0,2742.9,0.07554439]
[1740221213881,1.224739,2743.0,2742.7,3.64601]
[1740221214197,0.782,2743.0,2742.5,5.3]
[1740221214363,0.782,2743.0,2742.8,0.07554439]
[1740221214563,0.782,2743.0,2742.6,3.64617]
[1740221214788,0.782,2743.0,2742.9,0.07554439]
[1740221215092,1.224739,2743.0,2742.6,3.64617]
[1740221215294,1.224739,2743.0,2742.9,0.07554439]
[1740221215501,1.224739,2743.0,2742.6,3.64617]
[1740221215683,0.782,2743.0,2742.6,3.64617]
[1740221215886,0.782,2743.0,2742.7,0.07554439]
[1740221217958,0.27701882,2743.6,2742.7,0.07554439]
[1740221217959,0.833,2743.6,2742.7,0.07554439]
[1740221218163,0.833,2743.6,2742.7,0.61205428]
[1740221218398,0.833,2743.6,2743.2,3.64532]
[1740221218573,0.833,2743.6,2743.4,3.64507]
[1740221218775,8.279,2743.8,2743.4,3.64507]
[1740221219083,8.279,2743.8,2743.5,0.07694477]
[1740221220069,3.64473,2743.7,2743.5,0.07694477]
[1740221220316,3.64473,2743.7,2743.2,3.64527]
[1740221220510,3.64473,2743.7,2743.6,0.07671701]
[1740221220673,0.7571,2743.4,2743.0,3.0]
[1740221220872,0.7571,2743.4,2742.9,5.3]
[1740221221073,4.40234,2743.4,2742.9,5.3]
[1740221221683,0.7571,2743.2,2742.7,5.3]
[1740221221916,0.7571,2743.2,2742.8,3.64588]
[1740221223066,0.7571,2743.6,2742.7,5.3]
[1740221223416,0.7571,2743.6,2742.7,8.946]
[1740221223572,7.29042,2743.4,2742.7,8.946]
[1740221223767,0.7571,2743.3,2742.9,0.07651206]
[1740221224079,0.7571,2743.0,2742.7,5.3]
[1740221226247,0.7571,2743.0,2742.7,8.94595]
[1740221226402,0.7571,2743.0,2742.7,5.3]
[1740221228832,0.7571,2743.0,2742.6,3.64608]
[1740221228998,0.7571,2743.0,2742.5,3.64629]
[1740221231019,0.7571,2743.0,2742.5,3.64622]
[1740221231223,0.7571,2743.0,2742.5,7.29244]
[1740221231664,0.7571,2743.0,2742.5,3.64622]
[1740221232777,0.7571,2743.0,2742.6,3.64617]
[1740221236314,0.7571,2743.0,2742.7,3.64602]
[1740221236509,0.8059,2743.5,2742.7,0.729219]
[1740221236658,0.8059,2743.5,2743.2,3.64531]
[1740221237303,0.8059,2743.5,2743.3,0.07697895]
[1740221237804,4.45092,2743.5,2743.3,0.07697895]
[1740221237960,4.45092,2743.5,2743.0,8.94553]
[1740221238159,5.260483,2743.5,2743.1,0.0766601]
[1740221238473,1.615463,2743.5,2743.1,0.0766601]
[1740221239407,5.260463,2743.5,2743.1,0.0766601]
[1740221239555,4.454563,2743.5,2743.1,0.0766601]
[1740221239909,3.64537,2743.2,2743.1,0.0766601]
[1740221240092,4.43897,2743.2,2743.1,0.0766601]
[1740221241107,4.43919,2743.1,2742.5,3.64627]
[1740221241307,3.64565,2743.0,2742.5,3.64627]
[1740221241462,3.64565,2743.0,2742.6,0.07360444]
[1740221241662,0.7936,2742.9,2742.6,0.07360444]
[1740221243012,0.7936,2742.9,2742.4,3.64641]
[1740221243220,0.7936,2742.9,2742.7,0.07360444]
[1740221243386,0.7936,2742.9,2742.4,3.64641]
[1740221243716,8.42411858,2742.9,2742.8,0.07360444]
[1740221243933,0.7936,2742.0,2741.6,0.74554803]
[1740221244208,3.64711,2741.9,2741.7,0.05364401]
[1740221244512,0.7936,2742.0,2741.7,0.05364401]
[1740221244666,1.237656,2742.0,2741.7,0.05364401]
[1740221245173,4.44059,2742.0,2741.5,5.3]
[1740221245484,4.44059,2742.0,2741.8,0.0543599]
[1740221245813,4.44059,2742.0,2741.9,0.0543599]
[1740221246311,4.44059,2742.0,2741.5,5.3]
[1740221246522,4.44059,2742.0,2741.9,0.0543599]
[1740221246730,5.249319,2742.0,2741.5,5.3]
[1740221247321,1.602329,2742.0,2741.6,0.0543599]
[1740221248911,5.249379,2742.0,2741.6,0.0543599]
[1740221249226,4.41897,2741.7,2741.6,0.0543599]
[1740221249439,3.64778,2741.4,2740.8,8.9485]
[1740221249739,0.7716,2741.3,2740.8,5.3]
[1740221249879,0.7716,2741.3,2740.6,0.288]
[1740221250085,3.64806,2741.2,2740.6,3.93682]
[1740221250323,4.454932,2741.1,2740.6,1.02317052]
[1740221250516,3.64817,2741.1,2740.6,0.73517052]
[1740221250718,0.7716,2741.0,2740.6,0.73517052]
[1740221251063,4.41993,2741.0,2740.6,0.73517052]
[1740221251447,4.41994,2741.0,2740.7,0.05377923]
[1740221251613,3.64848,2740.9,2740.7,0.05377923]
[1740221251820,0.7716,2740.8,2740.7,0.05377923]
[1740221252075,0.7716,2740.8,2740.2,3.64926]
[1740221252236,4.42017,2740.8,2740.7,0.05377923]
[1740221252567,1.578465,2740.8,2740.7,0.05377923]
[1740221252715,0.7716,2740.8,2740.7,0.05377923]
[1740221253351,4.42017,2740.8,2740.3,3.64918]
[1740221253525,0.7716,2740.8,2740.7,0.05377923]
[1740221254713,0.7716,2740.8,2740.4,3.64898]
[1740221255118,0.7716,2740.8,2740.5,0.05377923]
[1740221255328,1.213592,2740.8,2740.5,0.05377923]
[1740221255945,0.7716,2740.8,2740.4,3.64902]
[1740221256142,0.7716,2740.8,2740.5,0.05377923]
[1740221257160,0.7716,2740.8,2740.5,3.70273923]
[1740221258034,0.7716,2740.8,2740.5,0.05377923]
[1740221258233,0.7716,2740.8,2740.2,3.6493]
[1740221258433,0.7716,2740.8,2740.6,0.05542744]
[1740221258434,0.442014,2740.7,2740.6,0.05542744]
[1740221258633,0.442014,2740.7,2740.2,3.6493]
[1740221258867,0.442014,2740.7,2740.6,0.05542744]
[1740221259356,0.442014,2740.7,2740.2,3.64928]
[1740221259667,0.442014,2740.7,2740.3,0.05542744]
[1740221259871,0.442014,2740.7,2740.2,7.29854]
[1740221260066,0.442014,2740.7,2740.4,0.05542744]
[1740221260364,0.442014,2740.7,2740.5,0.05542744]
[1740221260670,0.442014,2740.7,2740.4,3.64899]
[1740221260866,0.7716,2740.8,2740.6,0.05706428]
[1740221261187,0.7716,2740.8,2740.7,0.05706428]
[1740221261528,0.7716,2740.8,2740.4,3.64899]
[1740221261695,0.7716,2740.8,2740.7,0.05707565]
[1740221261904,0.7716,2740.8,2740.4,7.298]
[1740221262055,0.7716,2740.8,2740.7,0.05707565]
[1740221262236,1.213598,2740.8,2740.4,3.64899]
[1740221262441,1.213598,2740.8,2740.7,0.05707565]
[1740221262654,1.213598,2740.8,2740.4,3.64899]
[1740221262987,1.213598,2740.8,2740.5,0.05707565]
[1740221263573,1.213598,2740.8,2740.6,3.64882]
[1740221263779,1.213598,2740.8,2740.4,3.64899]
[1740221263780,0.7716,2740.8,2740.7,0.05704153]
[1740221264077,0.7716,2740.8,2740.5,3.64894]
[1740221264379,0.7716,2740.8,2740.6,0.05704153]
[1740221264560,0.7662,2741.1,2741.0,3.6483]
[1740221264759,0.7662,2741.1,2741.0,3.70534153]
[1740221264967,0.7662,2741.1,2741.0,0.05704153]
[1740221265285,0.7662,2741.1,2740.6,3.64875]
[1740221265437,0.7662,2741.1,2741.0,0.05704153]
[1740221265640,0.7662,2741.1,2740.6,3.64875]
[1740221265953,0.441424,2741.0,2740.6,3.64875]
[1740221266156,0.441424,2741.0,2740.4,7.29805]
[1740221266371,0.441424,2741.0,2740.5,3.64894]
[1740221266776,0.441424,2741.0,2740.6,3.64881]
[1740221266972,0.7662,2741.1,2740.6,3.64881]
[1740221267147,0.7662,2741.1,2740.8,3.64855]
[1740221267664,0.7662,2741.1,2740.6,3.64871]
[1740221267861,0.7662,2741.1,2740.7,3.64859]
[1740221268061,0.7662,2741.1,2740.6,3.64871]
[1740221268277,1.207624,2741.1,2740.6,3.64871]
[1740221268641,1.207624,2741.1,2740.7,0.05704153]
[1740221268877,3.64838,2741.0,2740.7,0.05704153]
[1740221269137,3.64874,2740.7,2740.3,5.3]
[1740221269409,0.8291,2740.5,2740.0,5.3]
[1740221269626,0.8291,2740.5,2740.0,3.64952]
[1740221269823,4.47807,2740.5,2739.8,3.64979]
[1740221269974,4.47807,2740.5,2739.5,5.588]
[1740221269975,0.8291,2740.1,2739.5,8.9503]
[1740221270176,4.097529,2740.0,2739.4,3.93842]
[1740221270491,4.097529,2740.0,2739.4,3.65034]
[1740221270492,0.447849,2740.0,2739.4,3.65034]
[1740221270705,0.447849,2740.0,2739.6,3.65013]
[1740221271220,0.8291,2739.7,2738.9,0.4174]
[1740221271400,0.447849,2740.0,2739.3,3.65045]
[1740221271708,0.8291,2740.0,2739.6,3.65013]
[1740221272222,0.8291,2740.0,2739.7,3.64999]
[1740221272378,0.8291,2740.0,2739.8,3.64989]
[1740221272577,0.8291,2740.0,2739.6,3.65007]
[1740221272772,0.8291,2740.0,2739.8,3.64986]
[1740221273175,0.8291,2740.4,2740.1,3.6494]
[1740221273475,0.8291,2740.4,2739.8,3.64979]
[1740221273684,0.447808,2740.3,2739.8,3.64979]
[1740221273941,0.447808,2740.3,2739.6,8.95012]
[1740221274221,4.097148,2740.3,2739.6,8.95012]
[1740221274736,0.8291,2740.1,2739.6,5.3]
[1740221275217,0.8291,2740.1,2739.7,3.65002]
[1740221275375,1.276937,2740.1,2739.7,3.65002]
[1740221275576,1.276937,2740.1,2739.6,8.95015]
[1740221275777,1.276937,2740.1,2739.7,3.64999]
[1740221276189,1.276937,2740.1,2739.6,5.3]
[1740221276387,1.276937,2740.1,2739.6,8.95014]
[1740221276594,0.4926307,2740.0,2739.6,8.95014]
[1740221276993,4.1422907,2740.0,2739.6,5.3]
[1740221277328,3.64991,2739.8,2739.6,5.3]
[1740221277528,3.64991,2739.8,2739.2,3.65058]
[1740221277834,0.8291,2739.6,2739.0,8.95092]
[1740221278039,0.8291,2739.6,2739.1,3.65071]
[1740221278538,0.8291,2739.6,2739.2,7.30122]
[1740221278692,0.8291,2739.6,2739.2,3.65061]
[1740221279217,0.8291,2739.6,2738.8,0.4174]
[1740221279218,0.7673,2739.3,2738.8,5.3]
[1740221279536,0.441773,2739.2,2738.8,8.95113]
[1740221279742,0.7673,2739.3,2739.0,3.65093]
[1740221279938,0.7673,2739.3,2739.0,7.30181]
[1740221280245,0.7673,2739.3,2738.8,7.30231]
[1740221280429,1.209064,2739.3,2738.9,3.65101]
[1740221280738,0.7673,2739.3,2738.8,3.65112]
[1740221280896,0.7673,2739.3,2738.5,5.3]
[1740221280897,0.7673,2739.3,2738.6,3.65145]
[1740221281091,4.41792,2739.3,2738.6,3.65145]
[1740221281292,0.7673,2739.3,2739.0,3.65094]
[1740221281491,0.7673,2739.3,2738.9,7.30201]
[1740221281733,0.7673,2739.3,2738.9,3.65099]
[1740221282526,0.7673,2739.3,2739.1,3.6508]
[1740221282728,0.7673,2739.3,2739.1,3.65075]
[1740221282927,0.8112,2739.6,2739.2,3.65058]
[1740221283130,1.2371101,2739.6,2739.2,7.30114]
[1740221283432,1.2371101,2739.6,2739.3,0.0516604]
[1740221283894,1.2371101,2739.6,2739.2,3.65056]
[1740221284095,4.8872901,2739.6,2739.4,0.0516604]
[1740221284310,4.8872901,2739.6,2739.0,3.6509]
[1740221284495,0.89853211,2739.5,2739.0,3.6509]
[1740221285035,0.7895,2739.4,2739.0,3.6509]
[1740221285422,0.7895,2739.4,2739.0,3.65086]
[1740221286230,0.7895,2739.4,2739.0,7.30174]
[1740221286535,0.7895,2739.4,2739.1,3.65082]
[1740221286735,1.00089422,2739.4,2739.2,3.65069]
[1740221286936,0.7895,2739.4,2739.2,3.65069]
[1740221287734,0.7895,2739.8,2739.7,3.65003]
[1740221287937,5.32,2739.9,2739.5,3.65019]
[1740221288138,0.55900654,2739.9,2739.5,3.65019]
[1740221288335,0.7895,2740.0,2739.6,3.65007]
[1740221288639,0.7895,2740.0,2739.6,3.65016]
[1740221288842,0.7895,2740.0,2739.5,3.65019]
[1740221289018,0.7895,2740.0,2739.6,3.65016]
[1740221289341,0.7895,2740.0,2739.5,3.65019]
[1740221289545,0.7895,2740.0,2739.5,7.30038]
[1740221289839,0.7895,2740.0,2739.4,5.3]
[1740221290042,0.7895,2739.7,2739.4,5.3]
[1740221290338,4.43989,2739.5,2738.8,7.30235]
[1740221290512,4.43989,2739.5,2738.8,3.65114]
[1740221290710,3.65043,2739.4,2738.9,3.65107]
[1740221290915,0.7895,2739.3,2738.7,5.3]
[1740221291804,3.65071,2739.2,2738.7,5.3]
[1740221292141,0.444021,2739.1,2738.7,5.3]
[1740221292515,4.094931,2739.1,2738.5,3.65154]
[1740221292839,0.7895,2739.0,2738.5,3.65154]
[1740221293041,3.65123,2738.8,2738.2,8.95197]
[1740221293337,0.7895,2738.5,2738.2,3.65194]
[1740221293501,0.7895,2739.0,2738.4,3.65176]
[1740221293702,0.7895,2739.0,2738.0,5.3]
[1740221294169,3.65123,2738.8,2738.0,8.9522]
[1740221294438,3.65164,2738.5,2737.8,3.65248]
[1740221294613,1.209664,2738.4,2737.9,3.65242]
[1740221294798,1.209664,2738.4,2737.7,3.65264]
[1740221295002,3.65194,2738.3,2737.6,8.95279]
[1740221295428,3.65194,2738.3,2737.7,3.65269]
[1740221295843,1.209664,2738.4,2737.8,3.65255]
[1740221296140,1.209664,2738.4,2737.9,3.65243]
[1740221296444,1.209664,2738.4,2738.0,3.65228]
[1740221296599,1.209664,2738.4,2737.8,3.65255]
[1740221297022,4.861464,2738.4,2737.8,3.65255]
[1740221297214,4.861464,2738.4,2737.6,8.95278]
[1740221297541,3.65192,2738.3,2737.6,8.95278]
[1740221297838,0.8513384,2738.2,2737.6,8.95278]
[1740221298003,4.5033684,2738.2,2737.6,5.3]
[1740221298429,4.5033684,2738.2,2738.1,0.05820778]
[1740221298625,4.5033684,2738.2,2738.1,0.005]
[1740221298803,1.6408384,2738.2,2738.1,0.05820778]
[1740221299941,0.8513384,2738.2,2738.1,0.05820778]
[1740221300142,4.20192,2738.3,2738.1,0.05820778]
[1740221300460,0.55,2738.3,2738.1,0.05820778]
[1740221300836,4.20198,2738.3,2738.1,0.05820778]
[1740221301004,4.47303,2738.2,2738.1,0.05820778]
[1740221301205,5.68400586,2738.2,2738.1,0.05820778]
[1740221301855,6.23400586,2738.2,2738.1,0.05820778]
[1740221302213,0.821,2738.4,2738.1,0.05820778]
[1740221302741,4.47284,2738.4,2738.1,0.05820778]
[1740221303144,0.821,2738.4,2738.1,0.05820778]
[1740221303841,4.47287,2738.4,2738.1,0.05820778]
[1740221304035,1.193187,2738.3,2738.1,0.05820778]
[1740221304559,7.459,2738.5,2738.1,0.05820778]
[1740221304922,7.459,2738.5,2738.1,3.71028778]
[1740221305451,7.459,2738.5,2738.1,0.05820778]
[1740221305655,7.459,2738.5,2738.2,0.1294]
[1740221305972,4.41845,2738.4,2738.2,0.05342388]
[1740221306257,1.187745,2738.3,2738.2,0.05342388]
[1740221307017,5.389645,2738.3,2738.2,0.05342388]
[1740221307703,6.156245,2738.3,2738.2,0.05342388]
[1740221308085,4.96863,2738.2,2738.1,0.005]
[1740221308400,8.40337858,2738.2,2738.1,0.005]
[1740221308577,12.72768094,2738.2,2738.1,0.005]
[1740221310210,9.29293236,2738.2,2738.1,0.005]
[1740221310778,5.64090236,2738.2,2738.1,0.005]
[1740221311293,9.29293236,2738.2,2738.1,0.005]
[1740221311613,5.64090236,2738.2,2738.1,0.05683894]
[1740221311989,5.64090236,2738.2,2738.1,0.005]
[1740221312185,5.64090236,2738.2,2738.1,0.05683894]
[1740221312416,5.64090236,2738.2,2738.1,0.005]
[1740221312714,9.29293236,2738.2,2738.1,0.005]
[1740221312877,9.29293236,2738.2,2738.1,0.05683894]
[1740221313579,9.29293236,2738.2,2738.1,0.005]
[1740221314318,0.8134,2738.6,2738.1,3.65716]
[1740221314611,0.55,2738.5,2738.1,3.70899894]
[1740221315018,0.55,2738.5,2738.1,0.05683894]
[1740221315314,4.20165,2738.5,2738.1,0.05683894]
[1740221315483,0.50077521,2738.4,2738.1,0.005]
[1740221315811,4.2019,2738.3,2738.2,0.05185031]
[1740221316015,7.63664858,2738.3,2738.2,0.05185031]
[1740221317630,8.45004858,2738.3,2738.2,0.05185031]
[1740221317984,4.79814858,2738.3,2738.1,0.005]
[1740221318189,8.45005858,2738.3,2738.1,0.005]
[1740221318384,0.8134,2738.6,2738.1,0.005]
[1740221318713,0.8134,2738.6,2738.3,3.65189]
[1740221318920,6.1334,2738.8,2738.4,3.65171]